fUST/lending_fUST_20250628
["ID","MTS","AMOUNT","RATE_DAILY","PERIOD"]
[368212053,1751061049416,-500.0,0.00020545,2]
[368212054,1751061049426,-500.0,0.00020545,2]
[368212055,1751061049435,-500.0,0.00020545,2]
[368212056,1751061049445,-421.41429018,0.00020545,2]
[368212057,1751061049456,-500.0,0.00020545,2]
[368212058,1751061049467,-500.0,0.00020545,2]
[368212059,1751061049476,-500.0,0.00020545,2]
[368212060,1751061049485,-500.0,0.00020545,2]
[368212061,1751061049494,-500.0,0.00020545,2]
[368212062,1751061049503,-500.0,0.00020545,2]
[368212063,1751061049513,-500.0,0.00020545,2]
[368212064,1751061049523,-500.0,0.00020545,2]
[368212065,1751061049534,-500.0,0.00020545,2]
[368212066,1751061049543,-500.0,0.00020545,2]
[368212067,1751061049553,-500.0,0.00020545,2]
[368212068,1751061049563,-500.0,0.00020545,2]
[368212069,1751061049572,-500.0,0.00020545,2]
[368212070,1751061049582,-500.0,0.00020545,2]
[368212071,1751061049591,-500.0,0.00020545,2]
[368212072,1751061049602,-500.0,0.00020545,2]
[368212073,1751061049612,-500.0,0.00020545,2]
[368212074,1751061049622,-500.0,0.00020545,2]
[368212075,1751061049637,-500.0,0.00020545,2]
[368212076,1751061049647,-500.0,0.00020545,2]
[368212077,1751061049658,-500.0,0.00020545,2]
[368212078,1751061049668,-500.0,0.00020545,2]
[368212079,1751061049677,-276.94828462,0.00020545,2]
[368212080,1751061049686,-500.0,0.00020545,2]
[368212081,1751061049696,-428.77372518,0.00020545,2]
[368212082,1751061049705,-500.0,0.00020545,2]
[368212083,1751061049714,-500.0,0.00020545,2]
[368212084,1751061049723,-500.0,0.00020545,2]
[368212085,1751061049732,-500.0,0.00020545,2]
[368212086,1751061049742,-321.98817888,0.00020545,2]
[368212087,1751061049751,-500.0,0.00020545,2]
[368212088,1751061049760,-500.0,0.00020545,2]
[368212089,1751061049769,-500.0,0.00020545,2]
[368212090,1751061049778,-500.0,0.00020545,2]
[368212091,1751061049788,-500.0,0.00020545,2]
[368212092,1751061049798,-500.0,0.00020545,2]
[368212093,1751061049808,-500.0,0.00020545,2]
[368212094,1751061049817,-151.0,0.00020546,2]
[368212095,1751061049827,-151.0,0.00020546,2]
[368212096,1751061049836,-151.0,0.00020546,2]
[368212097,1751061049846,-151.0,0.00020546,2]
[368212098,1751061049855,-151.0,0.00020546,2]
[368212099,1751061049863,-151.0,0.00020546,2]
[368212100,1751061049872,-151.0,0.00020546,2]
[368212101,1751061049882,-408.283271,0.00020546,2]
[368212102,1751061049891,-408.283271,0.00020546,2]
[368212103,1751061049903,-151.0,0.00020546,2]
[368212104,1751061049913,-151.0,0.00020546,2]
[368212105,1751061049924,-151.0,0.00020546,2]
[368212106,1751061049933,-151.0,0.00020546,2]
[368212107,1751061049942,-151.0,0.00020546,2]
[368212108,1751061049951,-158.257184,0.00020546,2]
[368212109,1751061049960,-158.257184,0.00020546,2]
[368212110,1751061049970,-151.0,0.00020546,2]
[368212111,1751061049979,-298.355002,0.00020546,2]
[368212112,1751061049988,-298.355002,0.00020546,2]
[368212113,1751061049998,-151.0,0.00020546,2]
[368212114,1751061050007,-171.674696,0.00020546,2]
[368212115,1751061050016,-171.674696,0.00020546,2]
[368212116,1751061050025,-151.0,0.00020547,2]
[368212117,1751061050036,-460.0,0.00020547,2]
[368212118,1751061050045,-460.0,0.00020547,2]
[368212119,1751061050054,-460.0,0.00020547,2]
[368212120,1751061050063,-460.0,0.00020547,2]
[368212121,1751061050073,-460.0,0.00020547,2]
[368212122,1751061050083,-460.0,0.00020547,2]
[368212123,1751061050092,-460.0,0.00020547,2]
[368212124,1751061050101,-460.0,0.00020547,2]
[368212125,1751061050111,-167.89,0.00020547,2]
[368212126,1751061050120,-460.0,0.00020547,2]
[368212127,1751061050130,-838.52,0.00020547,2]
[368212128,1751061050140,-151.0,0.00020547,2]
[368212129,1751061050150,-460.0,0.00020547,2]
[368212130,1751061050159,-460.0,0.00020547,2]
[368212131,1751061050168,-460.0,0.00020547,2]
[368212132,1751061050177,-151.0,0.00020547,2]
[368212133,1751061050186,-460.0,0.00020547,2]
[368212134,1751061050195,-460.0,0.00020547,2]
[368212135,1751061050204,-151.0,0.00020547,2]
[368212136,1751061050214,-151.0,0.00020547,2]
[368212137,1751061050225,-496.4,0.00020547,2]
[368212138,1751061050235,-398.761114,0.00020547,2]
[368212139,1751061050244,-460.0,0.00020547,2]
[368212140,1751061050254,-460.0,0.00020547,2]
[368212141,1751061050263,-398.761114,0.00020547,2]
[368212142,1751061050272,-460.0,0.00020547,2]
[368212143,1751061050282,-151.0,0.00020547,2]
[368212144,1751061050291,-151.0,0.00020547,2]
[368212145,1751061050300,-460.0,0.00020547,2]
[368212146,1751061050310,-151.0,0.00020547,2]
[368212147,1751061050319,-151.0,0.00020547,2]
[368212148,1751061050330,-460.0,0.00020547,2]
[368212149,1751061050339,-358.65081265,0.00020547,2]
[368212150,1751061050349,-151.0,0.00020547,2]
[368212151,1751061050359,-151.0,0.00020547,2]
[368212152,1751061050368,-460.0,0.00020547,2]
[368212153,1751061050378,-155.313187,0.00020547,2]
[368212154,1751061050388,-505.97,0.00020547,2]
[368212155,1751061050398,-157.812321,0.00020547,2]
[368212156,1751061050408,-336.860966,0.00020547,2]
[368212157,1751061050417,-487.52,0.00020547,2]
[368212158,1751061050426,-336.860966,0.00020547,2]
[368212159,1751061050435,-620.19,0.00020547,2]
[368212160,1751061050444,-460.0,0.00020547,2]
[368212161,1751061050454,-151.0,0.00020547,2]
[368212162,1751061050463,-151.0,0.00020547,2]
[368212163,1751061050472,-151.0,0.00020547,2]
[368212164,1751061050481,-635.28,0.00020547,2]
[368212165,1751061050490,-565.41,0.00020547,2]
[368212166,1751061050499,-460.0,0.00020547,2]
[368212167,1751061050508,-151.0,0.00020547,2]
[368212168,1751061050518,-2824.59,0.00020547,2]
[368212169,1751061050528,-245.308381,0.00020547,2]
[368212170,1751061050537,-597.55,0.00020547,2]
[368212171,1751061050548,-245.308381,0.00020547,2]
[368212172,1751061050560,-798.49,0.00020547,2]
[368212173,1751061050569,-3357.7,0.00020547,2]
[368212174,1751061050578,-761.7,0.00020547,2]
[368212175,1751061050587,-460.0,0.00020547,2]
[368212176,1751061050597,-915.183657,0.00020547,2]
[368212177,1751061050606,-915.183657,0.00020547,2]
[368212178,1751061050616,-487.85,0.00020547,2]
[368212179,1751061050626,-986.93,0.00020547,2]
[368212180,1751061050636,-153.690437,0.00020547,2]
[368212181,1751061050646,-679.08,0.00020547,2]
[368212182,1751061050655,-1181.38,0.00020547,2]
[368212183,1751061050664,-460.0,0.00020547,2]
[368212184,1751061050673,-2968.79,0.00020547,2]
[368212185,1751061050682,-460.0,0.00020547,2]
[368212186,1751061050691,-544.9,0.00020547,2]
[368212187,1751061050700,-497.76,0.00020547,2]
[368212188,1751061050709,-3495.66,0.00020547,2]
[368212189,1751061050718,-194.023015,0.00020547,2]
[368212190,1751061050727,-460.0,0.00020547,2]
[368212191,1751061050737,-194.023015,0.00020547,2]
[368212192,1751061050746,-2798.55,0.00020547,2]
[368212193,1751061050754,-629.97,0.00020547,2]
[368212194,1751061050763,-559.89,0.00020547,2]
[368212195,1751061050773,-460.0,0.00020547,2]
[368212196,1751061050782,-624.94,0.00020547,2]
[368212197,1751061050792,-1873.85,0.00020547,2]
[368212198,1751061050801,-1420.77,0.00020547,2]
[368212199,1751061050811,-1920.28,0.00020547,2]
[368212200,1751061050820,-460.0,0.00020547,2]
[368212201,1751061050829,-2056.81,0.00020547,2]
[368212202,1751061050839,-460.0,0.00020547,2]
[368212203,1751061050848,-585.66,0.00020547,2]
[368212204,1751061050857,-840.29,0.00020547,2]
[368212205,1751061050866,-5277.68,0.00020547,2]
[368212206,1751061050876,-4923.21,0.00020547,2]
[368212207,1751061050885,-739.24,0.00020547,2]
[368212208,1751061050897,-727.92,0.00020547,2]
[368212209,1751061050908,-460.0,0.00020547,2]
[368212210,1751061050918,-1514.85,0.00020547,2]
[368212211,1751061050927,-1211.92,0.00020547,2]
[368212212,1751061050938,-674.28,0.00020547,2]
[368212213,1751061050949,-322.025174,0.00020547,2]
[368212214,1751061050958,-669.06,0.00020547,2]
[368212215,1751061050969,-460.0,0.00020547,2]
[368212216,1751061050978,-322.025174,0.00020547,2]
[368212217,1751061050987,-460.0,0.00020547,2]
[368212218,1751061050996,-460.0,0.00020547,2]
[368212219,1751061051005,-1456.98,0.00020547,2]
[368212220,1751061051015,-1384.05,0.00020547,2]
[368212221,1751061051025,-707.41,0.00020547,2]
[368212222,1751061051034,-460.0,0.00020547,2]
[368212223,1751061051046,-590.69,0.00020547,2]
[368212224,1751061051055,-420.62554033,0.00020547,2]
[368212225,1751061051064,-542.12,0.00020547,2]
[368212226,1751061051073,-1928.85,0.00020547,2]
[368212227,1751061051083,-2564.36,0.00020547,2]
[368212228,1751061051092,-940.13,0.00020547,2]
[368212229,1751061051101,-558.51,0.00020547,2]
[368212230,1751061051110,-692.09,0.00020547,2]
[368212231,1751061051120,-703.36,0.00020547,2]
[368212232,1751061051129,-460.0,0.00020547,2]
[368212233,1751061051139,-989.89,0.00020547,2]
[368212234,1751061051150,-460.0,0.00020547,2]
[368212235,1751061051160,-460.0,0.00020547,2]
[368212236,1751061051169,-4047.67,0.00020547,2]
[368212237,1751061051179,-460.0,0.00020547,2]
[368212238,1751061051189,-460.0,0.00020547,2]
[368212239,1751061051198,-460.0,0.00020547,2]
[368212240,1751061051207,-1027.21,0.00020547,2]
[368212241,1751061051217,-735.72,0.00020547,2]
[368212242,1751061051226,-429.88324504,0.00020547,2]
[368212243,1751061051236,-460.0,0.00020547,2]
[368212244,1751061051245,-460.0,0.00020547,2]
[368212245,1751061051255,-4800.46,0.00020547,2]
[368212246,1751061051264,-695.51,0.00020547,2]
[368212247,1751061051274,-460.0,0.00020547,2]
[368212248,1751061051283,-2134.26,0.00020547,2]
[368212249,1751061051292,-341.78883345,0.00020588,2]
[368212250,1751061051301,-17468.5375441,0.00020613,2]
[368212251,1751061051310,-151.0,0.00020624,2]
[368212252,1751061051319,-151.0,0.00020624,2]
[368212253,1751061051328,-152.726394,0.00020624,2]
[368212254,1751061051338,-168.410633,0.00020624,2]
[368212255,1751061051347,-168.410633,0.00020624,2]
[368212256,1751061051356,-1867.641233,0.00020624,2]
[368212257,1751061051365,-1867.641233,0.00020624,2]
[368212258,1751061051374,-160.0,0.00020624,3]
[368212259,1751061051384,-12562.41216491,0.00020624,3]
[368212260,1751061051393,-847.04181546,0.00020624,3]
[368212261,1751061051403,-213.75309343,0.00020624,3]
[368212262,1751061051412,-6253.67473741,0.00020624,3]
[368212263,1751061051421,-227.0,0.00020654,2]
[368212264,1751061051431,-1102.935753,0.00020731,4]
[368212265,1751061051440,-5000.0,0.00020743,2]
[368212266,1751061051449,-833.87781239,0.0002079,2]
[368212267,1751061051458,-1500.0,0.00020792,2]
[368212268,1751061051467,-151.0,0.0002082,2]
[368212269,1751061051477,-151.0,0.0002082,2]
[368212270,1751061051486,-286.351746,0.0002082,2]
[368212271,1751061051495,-286.351746,0.0002082,2]
[368212272,1751061051505,-151.0,0.0002082,2]
[368212273,1751061051514,-151.0,0.0002082,2]
[368212274,1751061051523,-171.674696,0.0002082,2]
[368212275,1751061051533,-171.674696,0.0002082,2]
[368212276,1751061051542,-300.0,0.00020821,2]
[368212277,1751061051551,-151.0,0.00020821,2]
[368212278,1751061051561,-151.0,0.00020821,2]
[368212279,1751061051570,-460.0,0.00020821,2]
[368212280,1751061051579,-151.0,0.00020821,2]
[368212281,1751061051588,-152.176377,0.00020821,2]
[368212282,1751061051597,-266.869812,0.00020821,2]
[368212283,1751061051606,-151.0,0.00020821,2]
[368212284,1751061051615,-460.0,0.00020821,2]
[368212285,1751061051625,-151.0,0.00020821,2]
[368212286,1751061051634,-460.0,0.00020821,2]
[368212287,1751061051643,-460.0,0.00020821,2]
[368212288,1751061051652,-151.0,0.00020821,2]
[368212289,1751061051661,-151.0,0.00020821,2]
[368212290,1751061051670,-168.245862,0.00020821,2]
[368212291,1751061051679,-168.245862,0.00020821,2]
[368212292,1751061051689,-460.0,0.00020821,2]
[368212293,1751061051698,-460.0,0.00020821,2]
[368212294,1751061051707,-460.0,0.00020821,2]
[368212295,1751061051716,-838.52,0.00020821,2]
[368212296,1751061051725,-460.0,0.00020821,2]
[368212297,1751061051734,-460.0,0.00020821,2]
[368212298,1751061051744,-460.0,0.00020821,2]
[368212299,1751061051753,-460.0,0.00020821,2]
[368212300,1751061051871,-496.4,0.00020821,2]
[368212301,1751061051895,-460.0,0.00020821,2]
[368212302,1751061051905,-460.0,0.00020821,2]
[368212303,1751061051914,-460.0,0.00020821,2]
[368212304,1751061051923,-386.52835291,0.00020821,2]
[368212305,1751061051932,-487.52,0.00020821,2]
[368212306,1751061051942,-502.381,0.00020821,2]
[368212307,1751061051951,-620.19,0.00020821,2]
[368212308,1751061051961,-635.28,0.00020821,2]
[368212309,1751061051970,-565.41,0.00020821,2]
[368212310,1751061051980,-460.0,0.00020821,2]
[368212311,1751061051989,-2824.59,0.00020821,2]
[368212312,1751061051998,-597.55,0.00020821,2]
[368212313,1751061052008,-798.49,0.00020821,2]
[368212314,1751061052018,-3357.7,0.00020821,2]
[368212315,1751061052027,-761.7,0.00020821,2]
[368212316,1751061052037,-460.0,0.00020821,2]
[368212317,1751061052047,-487.85,0.00020821,2]
[368212318,1751061052056,-986.93,0.00020821,2]
[368212319,1751061052066,-151.0,0.00020821,2]
[368212320,1751061052075,-679.08,0.00020821,2]
[368212321,1751061052085,-1181.38,0.00020821,2]
[368212322,1751061052095,-151.0,0.00020821,2]
[368212323,1751061052106,-460.0,0.00020821,2]
[368212324,1751061052116,-2968.79,0.00020821,2]
[368212325,1751061052125,-460.0,0.00020821,2]
[368212326,1751061052136,-544.9,0.00020821,2]
[368212327,1751061052147,-497.76,0.00020821,2]
[368212328,1751061052156,-3495.66,0.00020821,2]
[368212329,1751061052165,-460.0,0.00020821,2]
[368212330,1751061052175,-2798.55,0.00020821,2]
[368212331,1751061052185,-151.0,0.00020821,2]
[368212332,1751061052194,-629.97,0.00020821,2]
[368212333,1751061052204,-559.89,0.00020821,2]
[368212334,1751061052215,-460.0,0.00020821,2]
[368212335,1751061052226,-624.94,0.00020821,2]
[368212336,1751061052236,-1873.85,0.00020821,2]
[368212337,1751061052246,-1920.28,0.00020821,2]
[368212338,1751061052255,-1420.77,0.00020821,2]
[368212339,1751061052266,-460.0,0.00020821,2]
[368212340,1751061052275,-151.0,0.00020821,2]
[368212341,1751061052284,-151.0,0.00020821,2]
[368212342,1751061052293,-2056.81,0.00020821,2]
[368212343,1751061052302,-151.0,0.00020821,2]
[368212344,1751061052312,-408.283271,0.00020821,2]
[368212345,1751061052321,-585.66,0.00020821,2]
[368212346,1751061052330,-408.283271,0.00020821,2]
[368212347,1751061052339,-840.29,0.00020821,2]
[368212348,1751061052348,-5277.68,0.00020821,2]
[368212349,1751061052358,-4923.21,0.00020821,2]
[368212350,1751061052367,-739.24,0.00020821,2]
[368212351,1751061052376,-151.0,0.00020821,2]
[368212352,1751061052385,-151.0,0.00020821,2]
[368212353,1751061052395,-151.0,0.00020821,2]
[368212354,1751061052405,-278.915758,0.00020821,2]
[368212355,1751061052414,-727.92,0.00020821,2]
[368212356,1751061052424,-460.0,0.00020821,2]
[368212357,1751061052436,-1514.85,0.00020821,2]
[368212358,1751061052446,-1211.92,0.00020821,2]
[368212359,1751061052457,-674.28,0.00020821,2]
[368212360,1751061052466,-158.257184,0.00020821,2]
[368212361,1751061052475,-158.257184,0.00020821,2]
[368212362,1751061052484,-374.97396452,0.00020821,2]
[368212363,1751061052495,-669.06,0.00020821,2]
[368212364,1751061052504,-460.0,0.00020821,2]
[368212365,1751061052513,-460.0,0.00020821,2]
[368212366,1751061052523,-1456.98,0.00020821,2]
[368212367,1751061052532,-1384.05,0.00020821,2]
[368212368,1751061052542,-707.41,0.00020821,2]
[368212369,1751061052551,-460.0,0.00020821,2]
[368212370,1751061052561,-590.69,0.00020821,2]
[368212371,1751061052570,-298.355002,0.00020821,2]
[368212372,1751061052579,-542.12,0.00020821,2]
[368212373,1751061052589,-298.355002,0.00020821,2]
[368212374,1751061052598,-1928.85,0.00020821,2]
[368212375,1751061052607,-2564.36,0.00020821,2]
[368212376,1751061052617,-940.13,0.00020821,2]
[368212377,1751061052626,-558.51,0.00020821,2]
[368212378,1751061052636,-692.09,0.00020821,2]
[368212379,1751061052646,-703.36,0.00020821,2]
[368212380,1751061052656,-460.0,0.00020821,2]
[368212381,1751061052666,-460.0,0.00020821,2]
[368212382,1751061052675,-460.0,0.00020821,2]
[368212383,1751061052685,-4047.67,0.00020821,2]
[368212384,1751061052694,-989.89,0.00020821,2]
[368212385,1751061052704,-460.0,0.00020821,2]
[368212386,1751061052714,-246.45618443,0.00020821,2]
[368212387,1751061052723,-460.0,0.00020821,2]
[368212388,1751061052732,-1027.21,0.00020821,2]
[368212389,1751061052742,-735.72,0.00020821,2]
[368212390,1751061052751,-460.0,0.00020821,2]
[368212391,1751061052761,-460.0,0.00020821,2]
[368212392,1751061052770,-4800.46,0.00020821,2]
[368212393,1751061052781,-695.51,0.00020821,2]
[368212394,1751061052791,-2134.26,0.00020821,2]
[368212395,1751061052800,-1362.92901866,0.00020866,4]
[368212396,1751061052970,-3457.921302,0.00020866,4]
[368212397,1751061052986,-1432.82441675,0.00020866,4]
[368212398,1751061052996,-151.6,0.00020903,4]
[368212399,1751061053005,-151.0,0.00020958,2]
[368212400,1751061053015,-23708.781026,0.00021,2]
[368212401,1751061053025,-151.0,0.00021,2]
[368212402,1751061053034,-151.0,0.00021,2]
[368212403,1751061053044,-398.761114,0.00021,2]
[368212404,1751061053053,-398.761114,0.00021,2]
[368212405,1751061053062,-151.0,0.00021,2]
[368212406,1751061053072,-151.0,0.00021,2]
[368212407,1751061053081,-151.0,0.00021,2]
[368212408,1751061053090,-151.0,0.00021,2]
[368212409,1751061053099,-151.0,0.00021,2]
[368212410,1751061053109,-336.860966,0.00021,2]
[368212411,1751061053118,-336.860966,0.00021,2]
[368212412,1751061053128,-151.0,0.00021,2]
[368212413,1751061053138,-151.0,0.00021,2]
[368212414,1751061053148,-151.0,0.00021,2]
[368212415,1751061053157,-151.0,0.00021,2]
[368212416,1751061053166,-245.308381,0.00021,2]
[368212417,1751061053176,-245.308381,0.00021,2]
[368212418,1751061053185,-915.183657,0.00021,2]
[368212419,1751061053195,-915.183657,0.00021,2]
[368212420,1751061053204,-194.023015,0.00021,2]
[368212421,1751061053213,-194.023015,0.00021,2]
[368212422,1751061053223,-322.025174,0.00021,2]
[368212423,1751061053232,-322.025174,0.00021,2]
[368212424,1751061053242,-889.63891331,0.00021044,2]
[368212425,1751061053251,-151.0,0.00021068,2]
[368212426,1751061053260,-151.0,0.00021068,2]
[368212427,1751061053269,-151.0,0.00021068,2]
[368212428,1751061053278,-500.0,0.00021068,2]
[368212429,1751061053287,-500.0,0.00021068,2]
[368212430,1751061053296,-500.0,0.00021068,2]
[368212431,1751061053305,-151.0,0.00021068,2]
[368212432,1751061053314,-151.0,0.00021068,2]
[368212433,1751061053324,-151.0,0.00021068,2]
[368212434,1751061053333,-151.0,0.00021068,2]
[368212435,1751061053342,-151.0,0.00021068,2]
[368212436,1751061053351,-500.0,0.00021068,2]
[368212437,1751061053360,-151.0,0.00021068,2]
[368212438,1751061053369,-151.0,0.00021068,2]
[368212439,1751061053378,-500.0,0.00021068,2]
[368212440,1751061053387,-151.0,0.00021068,2]
[368212441,1751061053397,-500.0,0.00021068,2]
[368212442,1751061053406,-151.0,0.00021068,2]
[368212443,1751061053415,-151.0,0.00021068,2]
[368212444,1751061053424,-272.65372998,0.00021068,2]
[368212445,1751061053435,-151.0,0.00021068,2]
[368212446,1751061053444,-206.90205378,0.00021068,2]
[368212447,1751061053455,-151.0,0.00021068,2]
[368212448,1751061053465,-198.0,0.00021068,2]
[368212449,1751061053474,-151.0,0.00021068,2]
[368212450,1751061053483,-151.0,0.00021068,2]
[368212451,1751061053493,-151.0,0.00021068,2]
[368212452,1751061053502,-226.58064634,0.00021068,2]
[368212453,1751061053511,-271.78846575,0.00021068,2]
[368212454,1751061053522,-151.0,0.00021068,2]
[368212455,1751061053533,-151.0,0.00021068,2]
[368212456,1751061053542,-151.0,0.00021068,2]
[368212457,1751061053551,-151.0,0.00021068,2]
[368212458,1751061053561,-151.0,0.00021068,2]
[368212459,1751061053570,-500.0,0.00021068,2]
[368212460,1751061053580,-151.0,0.00021068,2]
[368212461,1751061053590,-151.0,0.00021068,2]
[368212462,1751061053600,-275.40771764,0.00021068,2]
[368212463,1751061054018,-460.0,0.00019178,2]
[368212464,1751061054028,-460.0,0.00019178,2]
[368212465,1751061054037,-460.0,0.00019178,2]
[368212466,1751061054047,-460.0,0.00019452,2]
[368212467,1751061054056,-460.0,0.00019452,2]
[368212468,1751061054065,-460.0,0.00019726,2]
[368212469,1751061054075,-460.0,0.0002,2]
[368212470,1751061054084,-151.0,0.00020273,2]
[368212471,1751061054094,-500.0,0.00020545,2]
[368212472,1751061054103,-500.0,0.00020545,2]
[368212473,1751061054112,-233.66999472,0.00020545,2]
[368212474,1751061054121,-500.0,0.00020545,2]
[368212475,1751061054131,-500.0,0.00020545,2]
[368212476,1751061054140,-300.0,0.00020545,2]
[368212477,1751061054149,-151.0,0.00020613,2]
[368212478,1751061054158,-224.59228236,0.00021068,2]
[368212479,1751061054168,-370.8921118,0.00021068,2]
[368212480,1751061054177,-366.1147399,0.00021068,2]
[368212481,1751061054187,-732.2294798,0.00021068,2]
[368212482,1751061054196,-366.1147399,0.00021068,2]
[368212483,1751061054205,-366.1147399,0.00021068,2]
[368212484,1751061054214,-366.1147399,0.00021068,2]
[368212485,1751061054223,-366.1147399,0.00021068,2]
[368212486,1751061054233,-337.5619496,0.00021068,2]
[368212487,1751061054242,-151.0,0.00021095,2]
[368212488,1751061054252,-153.213618,0.00021095,2]
[368212489,1751061054261,-151.0,0.00021095,2]
[368212490,1751061054270,-151.0,0.00021095,2]
[368212491,1751061054279,-220.692302,0.00021095,2]
[368212492,1751061054288,-151.0,0.00021095,2]
[368212493,1751061054297,-460.0,0.00021095,2]
[368212494,1751061054307,-151.0,0.00021095,2]
[368212495,1751061054315,-219.766233,0.00021095,2]
[368212496,1751061054325,-151.0,0.00021095,2]
[368212497,1751061054334,-219.766233,0.00021095,2]
[368212498,1751061054343,-460.0,0.00021095,2]
[368212499,1751061054352,-460.0,0.00021095,2]
[368212500,1751061054362,-460.0,0.00021095,2]
[368212501,1751061054370,-460.0,0.00021095,2]
[368212502,1751061054379,-151.0,0.00021095,2]
[368212503,1751061054388,-460.0,0.00021095,2]
[368212504,1751061054397,-151.0,0.00021095,2]
[368212505,1751061054530,-838.52,0.00021095,2]
[368212506,1751061054540,-168.410633,0.00021095,2]
[368212507,1751061054549,-168.410633,0.00021095,2]
[368212508,1751061054558,-460.1,0.00021095,2]
[368212509,1751061054567,-286.351746,0.00021095,2]
[368212510,1751061054576,-460.0,0.00021095,2]
[368212511,1751061054586,-286.351746,0.00021095,2]
[368212512,1751061054595,-453.38,0.00021095,2]
[368212513,1751061054604,-460.0,0.00021095,2]
[368212514,1751061054613,-496.4,0.00021095,2]
[368212515,1751061054622,-1867.641233,0.00021095,2]
[368212516,1751061054631,-460.0,0.00021095,2]
[368212517,1751061054641,-1867.641233,0.00021095,2]
[368212518,1751061054653,-460.0,0.00021095,2]
[368212519,1751061054662,-205.59951248,0.00021095,2]
[368212520,1751061054671,-487.52,0.00021095,2]
[368212521,1751061054681,-620.19,0.00021095,2]
[368212522,1751061054690,-635.28,0.00021095,2]
[368212523,1751061054699,-565.41,0.00021095,2]
[368212524,1751061054709,-2824.59,0.00021095,2]
[368212525,1751061054718,-597.55,0.00021095,2]
[368212526,1751061054727,-798.49,0.00021095,2]
[368212527,1751061054736,-3357.7,0.00021095,2]
[368212528,1751061054746,-761.7,0.00021095,2]
[368212529,1751061054755,-460.0,0.00021095,2]
[368212530,1751061054764,-487.85,0.00021095,2]
[368212531,1751061054773,-305.12191115,0.00021095,2]
[368212532,1751061054786,-681.80808885,0.00021095,2]
[368212533,1751061054795,-679.08,0.00021095,2]
[368212534,1751061054804,-1181.38,0.00021095,2]
[368212535,1751061054813,-460.0,0.00021095,2]
[368212536,1751061054822,-2968.79,0.00021095,2]
[368212537,1751061054831,-460.0,0.00021095,2]
[368212538,1751061054840,-544.9,0.00021095,2]
[368212539,1751061054849,-497.76,0.00021095,2]
[368212540,1751061054859,-3495.66,0.00021095,2]
[368212541,1751061054868,-460.0,0.00021095,2]
[368212542,1751061054877,-2798.55,0.00021095,2]
[368212543,1751061054887,-629.97,0.00021095,2]
[368212544,1751061054896,-559.89,0.00021095,2]
[368212545,1751061054909,-460.0,0.00021095,2]
[368212546,1751061054918,-624.94,0.00021095,2]
[368212547,1751061054928,-1873.85,0.00021095,2]
[368212548,1751061054937,-1920.28,0.00021095,2]
[368212549,1751061054946,-1420.77,0.00021095,2]
[368212550,1751061054955,-460.0,0.00021095,2]
[368212551,1751061054964,-151.0,0.00021095,2]
[368212552,1751061054974,-151.0,0.00021095,2]